Cogmind - Beta 13 @@@ ROGUE MODE // 2024.04.01 @ 07:06:16 Player: ZO2D2 Result: Destroyed by Y-45 Defender with Beam Rifle Performance ------------- Evolutions (1) 500 Regions Visited (2) 400 Robots Destroyed (15) 75 Value Destroyed (390) 390 Prototype IDs (0) 0 Alien Tech Used (0) 0 Bonus (0) 0 TOTAL SCORE: 1365 Bonus ------- None Cogmind --------- Core Integrity 0/400 Matter 281/300 Energy 75/100 System Corruption 0% Temperature Danger (473) Movement Core (100) Ox1 Location -9/Materials Parts ------- > --- POWER (1) -------- (None) > --- PROPULSION (2) --- (None) > --- UTILITY (3) ------ Small Storage Unit > --- WEAPON (3) ------- (None) > --- INVENTORY (8) ---- Aluminum Leg Aluminum Leg Light Assault Rifle Peak State ------------ > --- POWER ------------ Ion Engine > --- PROPULSION ------- Light Treads Light Treads > --- UTILITY ---------- Small Storage Unit Sensor Array Light Armor Plating > --- WEAPON ----------- Small Laser Small Laser Light Assault Rifle > --- INVENTORY -------- Aluminum Leg Aluminum Leg Light Armor Plating Small Laser Light Assault Rifle Light Cannon [Rating: 9] Favorites ----------- Power Ion Engine Engine Ion Engine Propulsion Light Treads Treads Light Treads Utility Small Storage Unit Device Sensor Array Storage Small Storage Unit Protection Light Armor Plating Weapon Small Laser Energy Gun Small Laser Ballistic Gun Light Assault Rifle Ballistic Cannon Light Cannon Build | -11 -10 -9 ------- Run | Yrd Mat Mat Slots Evolved 2 | . . 2 Power . | . . . Propulsion . | . . . Utility 1 | . . 1 Weapon 1 | . . 1 Parts Attached 18 | 6 6 6 Power 2 | 1 1 . Engine 2 | 1 1 . Core . | . . . Reactor . | . . . Propulsion 2 | 2 . . Treads 2 | 2 . . Leg . | . . . Wheel . | . . . Hover . | . . . Flight . | . . . Utility 7 | 1 4 2 Device 1 | . . 1 Storage 4 | 1 3 . Processor . | . . . Hackware . | . . . Protection 2 | . 1 1 Artifact . | . . . Weapon 7 | 2 1 4 Energy Gun 4 | 1 1 2 Energy Cannon . | . . . Ballistic Gun 2 | 1 . 1 Ballistic Cannon 1 | . . 1 Launcher . | . . . Special Weapon . | . . . Impact Weapon . | . . . Slashing Weapon . | . . . Piercing Weapon . | . . . Special Melee Weapon . | . . . Unidentified Prototypes . | . . . Parts Lost 12 | . . 12 Power 1 | . . 1 Propulsion 2 | . . 2 Utility 3 | . . 3 Weapon 6 | . . 6 Highest Loss Streak 12 | . . 12 To Critical Strikes . | . . . Average Slot Usage (%) 94 | . 98 79 Engine 12 | . 13 8 Treads 24 | . 28 13 Device 2 | . . 8 Storage 15 | . 16 11 Protection 10 | . 10 8 Energy Gun 15 | . 14 18 Ballistic Gun 12 | . 14 9 Naked Turns . | . . . Heaviest Build 17 | 10 15 17 Greatest Support 40 | 40 40 40 Greatest Overweight (x) 1 | . . 1 Average Overweight (x) . | . . . Largest Inventory Capacity 25 | 8 25 8 Average Capacity 8 | 7 8 8 Most Carried 8 | 5 8 7 Average Carried 5 | 2 6 5 Final Capacity 8 | 8 8 8 Final Carried 8 | 3 8 3 Class Distribution -------------------- 80% | Mutant 19% | Tank Dominant Class ---------------- Mutant | -10/Materials Tank | -9/Materials Resources | -11 -10 -9 ----------- Run | Yrd Mat Mat Matter Collected 362 | 225 137 . Remotely . | . . . Salvage Created 464 | . 435 29 Parts 36 | . 32 4 Haulers Intercepted . | . . . Recyclers Shooed 1 | . . 1 Parts Field Recycled . | . . . Retrieved Matter . | . . . Parts Self-Destructed . | . . . Prevented . | . . . Kills | -11 -10 -9 ------- Run | Yrd Mat Mat Combat Hostiles Destroyed 14 | . 12 2 Guns 14 | . 12 2 Classes Destroyed 3 | . 3 . Worker 1 | . 1 . Swarmer 5 | . 3 2 Grunt 9 | . 9 . Best Kill Streak 6 | . 6 2 Combat Bots Only 6 | . 6 2 Max Kills in Single Turn 2 | . 2 1 Gunslinging . | . . . Exploded . | . . . Melee . | . . . Uniques/NPCs Destroyed . | . . . Combat | -11 -10 -9 -------- Run | Yrd Mat Mat Hostile Shots Fired 199 | . 70 129 Missed 42 | . 17 25 Damage Taken 1765 | . 592 1173 Core 522 | . 112 410 Absorbed by Shields . | . . . Core Remaining (%) 77 | 100 55 . Volleys Fired 61 | . 42 19 Largest 3 | . 2 3 Hottest 100 | . 60 100 Shots Fired 128 | . 83 45 Gun 128 | . 83 45 Cannon . | . . . Launcher . | . . . Special . | . . . Kinetic 58 | . 42 16 Thermal 70 | . 41 29 Explosive . | . . . Electromagnetic . | . . . Robot Hit Streak 20 | . 20 6 Robot Miss Streak 7 | . 3 7 Penetration Max . | . . . Secondary Targets 1 | . . 1 Max Gunslinging Chain 1 | . . 1 Shots Hit Robots 71 | . 50 21 Core Hits 34 | . 27 7 Critical Kills . | . . . Critical Parts Destroyed . | . . . Critical Strikes . | . . . Melee Attacks . | . . . Impact . | . . . Slashing . | . . . Piercing . | . . . Sneak Attacks . | . . . Combat Hostiles . | . . . Follow-up Attacks . | . . . Damage Inflicted 767 | . 536 231 Guns 767 | . 536 231 Cannons . | . . . Explosions . | . . . Melee . | . . . Ramming . | . . . Kinetic 326 | . 250 76 Thermal 441 | . 286 155 Explosive . | . . . Electromagnetic . | . . . Impact . | . . . Slashing . | . . . Piercing . | . . . Highest Corruption . | . . . Average Corruption . | . . . Corruption Purged . | . . . Corruption Blocked . | . . . Overload Shots . | . . . Overflow Damage . | . . . Projectiles . | . . . Explosions . | . . . Melee . | . . . Knockbacks . | . . . Impact . | . . . Kinetic . | . . . Secondary . | . . . Self-Inflicted Damage . | . . . Shots . | . . . Rammed . | . . . Targets Rammed . | . . . Kicked . | . . . Crushed . | . . . Highest Temperature 507 | . 220 507 Average Temperature 157 | . 96 309 Received Heat Transfer 795 | . 309 486 Effects 3 | . . 3 Energy Bleed 1 | . . 1 Short Circuit 1 | . . 1 Damage (major) 1 | . . 1 Siege Activations . | . . . Robots Corrupted . | . . . Combat Hostiles . | . . . Parts Fried . | . . . Impact Corruptions . | . . . Robots Melted . | . . . Combat Hostiles . | . . . Parts Melted 1 | . 1 . Heat Transferred 1000 | . 650 350 Parts Sabotaged . | . . . Parts Stolen . | . . . Parts Stripped . | . . . Power Chain Reactions . | . . . Alert | -11 -10 -9 ------- Run | Yrd Mat Mat Peak Influence 286 | . 286 70 Initial 35 | . . 35 Average 91 | . 122 33 Maximum Alert Level 1 | . 1 . Low Security (%) 85 | 100 78 100 Level 1 14 | . 21 . Level 2 . | . . . Level 3 . | . . . Level 4 . | . . . Level 5 . | . . . High Security . | . . . Max Security . | . . . Squads Dispatched 2 | . 2 . Investigation 2 | . 2 . Extermination . | . . . Reinforcement . | . . . Assault . | . . . Garrison . | . . . Intercept . | . . . Searches Triggered . | . . . Construction Impeded . | . . . Haulers Reinforced . | . . . Active Scanning Responses . | . . . Cargo Convoy Interrupts . | . . . Stealth | -11 -10 -9 --------- Run | Yrd Mat Mat Distress Signals 2 | . . 2 Communications Jammed . | . . . Distress Signals . | . . . Times Spotted 24 | . 14 10 Peak Tracking Total 11 | . 4 11 Tactical Retreats 1 | . . 1 Traps | -11 -10 -9 ------- Run | Yrd Mat Mat Traps Triggered 1 | . 1 . Indirectly . | . . . Trap Hack Attempts . | . . . Triggered . | . . . Disarmed . | . . . Reprogrammed . | . . . Reused . | . . . Traps Extracted . | . . . Installed . | . . . Triggered . | . . . Machines | -11 -10 -9 ---------- Run | Yrd Mat Mat Machines Disabled 2 | . 2 . Max in Single Turn 2 | . 2 . Machines Repaired . | . . . Machines Dismantled . | . . . Machines Sabotaged . | . . . Overloaded Fab Kills . | . . . Hacking | -11 -10 -9 --------- Run | Yrd Mat Mat Machines Accessed 1 | . 1 . Terminals 1 | . 1 . Fabricators . | . . . Repair Stations . | . . . Recycling Units . | . . . Scanalyzers . | . . . Garrison Access . | . . . Total Hacks 7 | . 7 . Successful 2 | . 2 . Failed 5 | . 5 . Catastrophic . | . . . Database Lockouts . | . . . Manual . | . . . Terminals 7 | . 7 . Fabricators . | . . . Repair Stations . | . . . Recycling Units . | . . . Scanalyzers . | . . . Garrison Access . | . . . Terminal Hacks 2 | . 2 . Unreport Threat 1 | . 1 . Zone Layout 1 | . 1 . Fabricator Hacks . | . . . Repair Station Hacks . | . . . Recycling Unit Hacks . | . . . Scanalyzer . | . . . Garrison Access Hacks . | . . . Unauthorized Hacks . | . . . Terminals . | . . . Fabricators . | . . . Repair Stations . | . . . Recycling Units . | . . . Scanalyzers . | . . . Garrison Access . | . . . Data Cores Recovered . | . . . Used . | . . . Hacking Detections 1 | . 1 . Full Trace Events 1 | . 1 . Feedback Events . | . . . Feedback Blocked . | . . . Robot Schematics Acquired . | . . . Robots Built . | . . . Authchips . | . . . Time . | . . . Total Robot Build Rating . | . . . Part Schematics Acquired . | . . . Parts Built . | . . . Authchips . | . . . Time . | . . . Total Part Build Rating . | . . . Parts Repaired . | . . . Time . | . . . Parts Recycled . | . . . Recycled Matter . | . . . Retrieved Matter . | . . . Retrieved Components . | . . . Parts Scanalyzed . | . . . Part Schematics Acquired . | . . . Parts Damaged . | . . . Bothacking | -11 -10 -9 ------------ Run | Yrd Mat Mat Used RIF Installer . | . . . Robots Hacked . | . . . Non-combat . | . . . Combat . | . . . Robot Hacks Applied . | . . . Relay Couplers Released . | . . . Fabnet Peak Effective % . | . . . Robots Rewired . | . . . Allies Hacked . | . . . Hacks Repelled . | . . . Allies | -11 -10 -9 -------- Run | Yrd Mat Mat Total Allies . | . . . Largest Group . | . . . Highest-Rated Group . | . . . Highest-Rated Ally . | . . . Total Orders . | . . . Ally Attacks . | . . . Total Damage . | . . . Kills . | . . . Allies Corrupted . | . . . Allies Melted . | . . . Intel | -11 -10 -9 ------- Run | Yrd Mat Mat Robot Analysis Total . | . . . Derelict Logs Recovered . | . . . Drone Launches . | . . . Drone Recoveries . | . . . Exploration | -11 -10 -9 ------------- Run | Yrd Mat Mat Turns Passed 670 | 69 465 136 Spaces Moved 297 | 44 204 49 Core 18 | 14 . 4 Treads 279 | 30 204 45 Legs . | . . . Wheels . | . . . Hover . | . . . Flight . | . . . Fastest Speed 50 | 50 160 100 Average Speed 154 | 125 160 155 Slowest Speed 160 | 160 160 160 Overloaded Moves . | . . . Propulsion Burnouts . | . . . Robots Hopped . | . . . Cave-ins Triggered . | . . . Exploration Rate (%) 17 | 5 40 8 Regions Visited 2 Branch Regions . Pre-discovered Areas . | . . . Known Exits Taken . | . . . Unknown Exits Taken 2 | 1 1 . Scrap Searched . | . . . Spaces Dug . | . . . Terrain Destroyed 19 | . 19 . Melee . | . . . Projectile . | . . . AOE 19 | . 19 . Terrain Rammed . | . . . Walls Destroyed . | . . . Machines Disabled . | . . . Actions | -11 -10 -9 --------- Run | Yrd Mat Mat Total 404 | 58 271 75 Wait . | . . . Move 295 | 43 203 49 Hop . | . . . Pick Up 23 | 9 13 1 Fast Attach . | . . . Attach 14 | 6 2 6 Detach . | . . . Swap 4 | . 4 . Drop 7 | . 7 . Fire 61 | . 42 19 Melee . | . . . Ram . | . . . Kick . | . . . Crush . | . . . Escape Stasis . | . . . Rewire . | . . . Trap . | . . . Miscellaneous . | . . . Route ------- -11/Scrapyard -10/Materials -9/Materials History --------- Turn | Location | Event 5 | -11/Scrapyard | Discovered new exit (range 15) 70 | -11/Scrapyard | Entered Materials 331 | -10/Materials | Build established: Mutant 453 | -10/Materials | Discovered new exit (range 16) 535 | -10/Materials | Entered another Materials area 535 | -9/Materials | Evolved 2 slots: Utility x1, Weapon x1 651 | -9/Materials | Core integrity fell below 50% 666 | -9/Materials | Core integrity fell below 20% 671 | -9/Materials | Destroyed by Y-45 Defender with Beam Rifle Last Messages --------------- 00638_ Sml. Laser destroyed. 00641_ Sensor Array destroyed. 00643_ Overheating: Energy bleed (-50). 00643_ Ion Engine destroyed. 00644_ Lgt. Assault Rifle destroyed. 00650_ Sml. Laser destroyed. 00651_ Lgt. Cannon broken. 00651_ Overheating: Short circuit. 00660_ Lgt. Armor Plating destroyed. 00664_ Overheating: Sml. Laser damaged (-19). 00664_ Broken Lgt. Cannon destroyed. 00664_ Critical hit (Burn: +37). 00665_ Sml. Laser destroyed. 00665_ Critical hit (Burn: +37). 00668_ W-16 Scout sends out distress signal. 00668_ Critical hit (Burn: +37). 00668_ Lgt. Assault Rifle destroyed. 00670_ M-13 Machinist fits Backup Propulsion I on S-10 Pest. 00671_ Acquired Lgt. Assault Rifle. Map ----- +----------------------------------------------------+ | ?????????????????????????????????????????????????? | | ?????????????????????????????????????????????????? | | ?????????????????????????????????????????????????? | | ?????????????????????????????????????????????????? | | ?????????????????????????????????????????????????? | | ?????????????????????????????????????????????????? | | ?????????????????????????????????????????????????? | | ?????????????????????????????????????????????????? | | ?????????????????????????????????????????????????? | | ???????????????????????##????????????????????????? | | ??????????????????????? ????????????????????????? | | ???????????????????????# ????????????????????????? | | ???????????????????????# ????????????????????????? | | ?????????????????????### ###?????????????????????? | | ?????????????????????# = #?????????????????????? | | ?????????????????????# % #?????????????????????? | | ?????????????????????#! % #?????????????????????? | | ?????????????????????# #?????????????????????? | | ?????????????????????? m ??????????????????????? | | ??????????????????????#Ys #??????????????????????? | | ??????????????????????# #??????????????????????? | | ??????????????????????# #??????????????????????? | | ??????????????????????# #??????????????????????? | | ??????????????????????# #??????????????????????? | | ??????????????????????# g #??????????????????????? | | ??????????????????????# g@#?????#????????????????? | | ??????????????????????# =g##### #????????????????? | | ??????????????????????# * +????????????????? | | ??????????????????????# ##+#????????????????? | | ??????????????????????## #???????????????????? | | ???????????????????????# w #???????????????????? | | ???????????????????????# #####???????????????????? | | ???????????????????????# #???????????????????????? | | ???????????????????????# #???????????????????????? | | ????????????????????####+####????????????????????? | | ????????????????????# #????????????????????? | | ????????????????????# #????????????????????? | | ????????????????????# #????????????????????? | | ????????????????????# ########+#######?????? | | ????????????????????# # ????? | | ????????????????????# + ????? | | ????????????????????# # ????? | | ????????????????????# # ####????????? | | ????????????????????# # #???????????? | | ????????????????????# # #???????????? | | ????????????????????# # #### #???????????? | | ????????????????????######### #??# #???????????? | | ????????????????????????????# #??# #???????????? | | ????????????????????????????# #??# #???????????? | | ???????????????????????######+#### #???????????? | +----------------------------------------------------+ Best States ------------- Heat Dissipation 28 Energy Generation 10 Energy Capacity 375 Matter Stores 300 Matter Capacity 300 Sight Range 16 Robot Scan Range 14 Terrain Scan Density 10 Armor Coverage 150 Evasion (%) 50 Recoil Reduction 2 Item Schematics ----------------- None Robot Schematics ------------------ None Fabricated ------------ Nothing Alien Tech Used ----------------- None Achievements -------------- None Challenges ------------ None Game ------ Seed ArmageddonNeutronCloak Manual? 0 Play Time 00:08:49 Cumulative 5.0 hours Start 2024.04.01 @ 06:58:50 End 2024.04.01 @ 07:06:16 Sessions 1 Manual Loads 0 Difficulty Rogue Special Mode None Game No. 9 Rogue 9 Adventurer 0 Explorer 0 Win Type - Total 0 Types 0/0/0/0/0/0/0/0/0 Lore% 5 Gallery% 15 Achievement% 12 Wizard Run 0 Options --------- Layout 1 ASCII 0 Keyboard 0 Movement Mouse Keybinds 0 Fullscreen 1 Font 24/Smallcaps Map View 50x35 Zoom Use 0% Tactical HUD 1 Map Filters NONE Filters NONE Steam 1 RUN: 93ab49d6-05b2-4487-97cb-3bca87711420